bitfinex/quotes_ETHUSD_20220226
["timestamp","ask_amount","ask_price","bid_price","bid_amount"]
[1645876848732,1.93089554,2758.6,2758.5,1.85269541]
[1645876849132,1.93089554,2758.6,2757.5,0.01994603]
[1645876849133,1.05884379,2758.4,2757.5,0.01994603]
[1645876849336,1.0,2758.1,2757.5,0.01994603]
[1645876849532,0.523,2758.0,2757.5,0.01994603]
[1645876850139,0.523,2758.0,2757.2,0.00740239]
[1645876850341,1.20202659,2757.4,2757.2,0.00740239]
[1645876850538,0.523,2758.0,2757.2,0.00740239]
[1645876850776,0.00390953,2757.9,2757.2,0.00740239]
[1645876850978,11.33,2758.0,2756.9,0.011218]
[1645876851276,11.33,2758.0,2757.4,0.46684781]
[1645876851277,1.52690953,2757.9,2757.4,0.46684781]
[1645876851480,1.523,2757.9,2757.4,0.46684781]
[1645876851681,1.13537568,2757.8,2757.4,0.46684781]
[1645876851879,1.65837568,2757.8,2757.4,0.46684781]
[1645876852078,1.95837568,2757.8,2757.4,0.46684781]
[1645876853679,1.65837568,2757.8,2757.4,0.46684781]
[1645876855326,11.03,2757.7,2757.4,0.46684781]
[1645876855529,2.86578568,2757.8,2757.4,0.46684781]
[1645876855727,1.90652904,2757.7,2757.4,0.46684781]
[1645876855926,0.90652904,2757.7,2757.4,0.46684781]
[1645876856325,0.90652904,2757.7,2757.0,0.01996038]
[1645876856526,0.91043857,2757.7,2757.4,0.46684781]
[1645876856728,3.63693904,2757.8,2757.4,0.46684781]
[1645876856933,1.42566297,2757.6,2757.4,0.46684781]
[1645876857832,1.42566297,2757.6,2757.0,0.01996038]
[1645876857833,11.03,2757.4,2757.0,0.01996038]
[1645876858135,11.03,2757.4,2756.9,0.011218]
[1645876858136,12.75952904,2757.4,2756.9,0.011218]
[1645876858381,13.75952904,2757.4,2756.9,0.011218]
[1645876858581,13.75952904,2757.4,2756.9,0.01620786]
[1645876859179,11.93762,2757.2,2756.9,0.01620786]
[1645876859378,12.46062,2757.2,2756.9,0.011218]
[1645876859585,12.03,2757.1,2756.9,0.00498981]
[1645876859785,1.01354768,2757.0,2756.9,0.00498981]
[1645876860186,0.73491556,2757.0,2756.9,0.00498981]
[1645876860589,0.73491556,2757.0,2756.0,0.25]
[1645876860793,1.4104129,2756.5,2756.4,0.01996198]
[1645876861790,1.4104129,2756.5,2755.7,1.0526475]
[1645876862047,0.59410272,2757.1,2756.3,0.00499008]
[1645876862048,1.59410272,2757.1,2756.3,0.00499008]
[1645876862234,0.59410272,2757.1,2756.3,0.00499008]
[1645876862933,0.59410272,2757.1,2755.7,2.5101875]
[1645876863133,1.10770826,2756.7,2755.8,0.48151]
[1645876863344,1.10770826,2756.7,2756.6,0.00498991]
[1645876863543,0.07110272,2757.1,2756.6,0.00498991]
[1645876864242,0.07110272,2757.1,2755.9,3.6451]
[1645876864441,0.07110272,2757.1,2756.7,0.00498981]
[1645876864641,1.38976593,2757.0,2756.7,0.00498981]
[1645876864843,0.07110272,2757.1,2756.7,0.00498981]
[1645876865445,0.07110272,2757.1,2756.0,0.1449]
[1645876865879,0.07110272,2757.1,2756.8,0.00498978]
[1645876866075,1.15221163,2757.0,2756.8,0.00498978]
[1645876866678,0.07110272,2757.1,2756.3,1.27006]
[1645876866877,0.07110272,2757.1,2756.8,0.00498978]
[1645876867882,1.27001778,2757.1,2756.2,0.1449]
[1645876868085,1.27001778,2757.1,2756.8,0.00432562]
[1645876868487,1.3411205,2757.1,2756.8,0.00432562]
[1645876869086,1.3411205,2757.1,2755.9,4.6451]
[1645876869284,1.3411205,2757.1,2756.8,0.00432562]
[1645876869553,1.41222322,2757.1,2756.8,0.00432562]
[1645876870242,1.41222322,2757.1,2756.2,3.5]
[1645876870443,1.41222322,2757.1,2756.1,1.75324222]
[1645876870444,1.41222322,2757.1,2756.8,0.00432562]
[1645876870651,0.28441088,2757.1,2756.8,0.00432562]
[1645876871547,0.30876742,2757.1,2756.2,0.1449]
[1645876871748,0.30876742,2757.1,2756.8,0.00432562]
[1645876872547,0.33312396,2757.1,2756.1,3.5]
[1645876872749,1.27349391,2756.6,2756.1,0.3]
[1645876872948,0.33312396,2757.1,2756.4,0.01766132]
[1645876873581,0.3574805,2757.1,2756.4,0.01766132]
[1645876873782,0.3574805,2757.1,2756.0,0.5078]
[1645876873978,1.39482264,2756.6,2756.2,0.01766178]
[1645876874180,0.3574805,2757.1,2756.2,0.01766178]
[1645876874580,0.38603518,2757.1,2756.2,0.01766178]
[1645876874980,0.38603518,2757.1,2756.0,0.5078]
[1645876875382,0.38603518,2757.1,2756.5,0.00441484]
[1645876875783,0.339289,2757.1,2756.5,0.00441484]
[1645876876188,0.339289,2757.1,2756.0,0.5078]
[1645876876387,0.339289,2757.1,2756.7,0.00440612]
[1645876876784,0.41039172,2757.1,2756.7,0.00440612]
[1645876877436,0.41039172,2757.1,2756.1,3.5]
[1645876877633,1.41361319,2756.8,2756.0,2.1415015]
[1645876877834,1.41361319,2756.8,2756.3,0.01762691]
[1645876878635,1.41361319,2756.8,2756.0,0.1451]
[1645876878839,1.41361319,2756.8,2756.4,0.00440627]
[1645876879839,1.41361319,2756.8,2756.0,0.1451]
[1645876880040,2.44041319,2756.8,2756.0,0.1451]
[1645876880241,2.44041319,2756.8,2756.5,0.00440749]
[1645876880883,3.34694223,2756.8,2756.5,0.00440749]
[1645876881182,3.34694223,2756.8,2756.0,0.16273262]
[1645876881183,3.34694223,2756.8,2756.0,0.1451]
[1645876881387,13.47041319,2756.8,2756.5,0.00310528]
[1645876881584,14.47041319,2756.8,2756.5,0.00310528]
[1645876882184,14.47041319,2756.8,2755.7,0.25]
[1645876882382,1.39293,2755.9,2755.7,0.25]
[1645876882585,1.39293,2755.9,2755.3,3.68154]
[1645876882786,6.7706,2756.7,2755.3,3.98154]
[1645876883689,6.7706,2756.7,2755.9,0.00440536]
[1645876884743,6.7706,2756.7,2755.4,0.1451]
[1645876884945,6.7706,2756.7,2756.2,0.00440519]
[1645876885543,6.84170272,2756.7,2756.2,0.00440519]
[1645876885744,6.84170272,2756.7,2755.5,3.5]
[1645876885945,6.84170272,2756.7,2755.4,0.3951]
[1645876886146,1.40221796,2756.6,2756.3,0.0044051]
[1645876886946,1.40221796,2756.6,2755.5,5.4603585]
[1645876887146,1.40221796,2756.6,2755.5,2.1418785]
[1645876887444,1.4265745,2756.6,2756.3,0.0044044]
[1645876888144,1.4265745,2756.6,2755.9,0.01762025]
[1645876888385,1.4265745,2756.6,2755.5,2.1418785]
[1645876888583,1.45093104,2756.6,2756.3,0.0044044]
[1645876889387,1.45093104,2756.6,2755.4,3.8951]
[1645876889588,1.52203376,2756.6,2755.5,1.53328917]
[1645876889789,13.4585628,2756.6,2756.3,0.0044044]
[1645876889989,0.90652904,2756.5,2756.3,0.0044044]
[1645876890187,1.86302904,2756.5,2756.3,0.0044044]
[1645876890588,1.86302904,2756.5,2755.4,0.25]
[1645876890790,1.28157127,2756.0,2755.5,1.53339437]
[1645876890991,1.28157127,2756.0,2755.8,0.01762055]
[1645876891791,1.28157127,2756.0,2755.3,4.4076833]
[1645876892030,1.28157127,2756.0,2755.8,0.00440476]
[1645876892230,0.90652904,2756.3,2755.8,0.00440476]
[1645876892732,0.07110272,2756.0,2755.8,0.00440476]
[1645876892934,0.07110272,2756.0,2755.3,0.9076833]
[1645876893135,0.07110272,2756.0,2755.4,1.53341432]
[1645876893336,1.17778281,2756.0,2755.9,0.00440468]
[1645876894235,1.17778281,2756.0,2755.3,0.9076833]
[1645876894440,0.07110272,2756.0,2755.8,0.00440477]
[1645876894636,0.14220544,2756.0,2755.8,0.00440477]
[1645876895436,0.14220544,2756.0,2755.4,3.5]
[1645876895636,1.28539498,2756.0,2755.8,0.0044048]
[1645876895880,1.3564977,2756.0,2755.8,0.0044048]
[1645876896685,0.2376647,2756.0,2755.4,3.5]
[1645876896886,0.2376647,2756.0,2755.8,0.0044048]
[1645876897886,0.2376647,2756.0,2755.3,1.0527833]
[1645876897887,0.26621938,2756.0,2755.3,1.0527833]
[1645876898086,0.26621938,2756.0,2755.8,0.00440479]
[1645876898885,0.29057592,2756.0,2755.8,0.00440479]
[1645876899085,1.43877009,2755.6,2755.2,4.64915481]
[1645876899287,1.43877009,2755.6,2755.3,1.55103948]
[1645876899525,1.43877009,2755.6,2755.4,1.53341767]
[1645876900533,1.43877009,2755.6,2755.5,1.53341767]
[1645876900732,1.43877009,2755.6,2755.4,0.00440502]
[1645876900932,2.17677009,2755.6,2755.4,0.00440502]
[1645876901534,2.17677009,2755.6,2755.0,0.00330826]
[1645876901732,1.20833904,2755.1,2754.9,1.55129563]
[1645876901934,1.20833904,2755.1,2755.0,1.5336729]
[1645876902134,1.20833904,2755.1,2754.9,0.01762273]
[1645876902536,1.20833904,2755.1,2754.4,0.00335043]
[1645876902734,1.20833904,2755.1,2754.4,1.53720464]
[1645876902934,1.20833904,2755.1,2754.9,0.00157775]
[1645876903383,0.90652904,2755.5,2754.9,0.00157775]
[1645876903784,1.20454525,2755.7,2754.7,1.53385421]
[1645876903985,0.02424525,2755.7,2754.8,0.00335043]
[1645876904485,0.02526384,2755.7,2754.8,3.5]
[1645876904683,0.02526384,2755.7,2754.9,1.53385421]
[1645876904887,1.02317192,2755.5,2754.9,1.53385421]
[1645876905086,1.02317192,2755.5,2755.0,1.53385421]
[1645876905287,1.02317192,2755.5,2754.8,0.00335043]
[1645876906495,0.02526384,2755.7,2754.8,3.87104555]
[1645876906496,0.00499367,2755.6,2754.8,3.87104555]
[1645876906688,0.00499367,2755.6,2754.9,2.58655731]
[1645876906889,0.00499367,2755.6,2755.0,5.03363301]
[1645876907127,0.00499367,2755.6,2755.1,1.67873301]
[1645876907331,0.00499367,2755.6,2755.2,1.53363301]
[1645876907533,1.41856473,2755.6,2755.2,1.53363301]
[1645876907730,1.41856473,2755.6,2755.2,5.03363301]
[1645876907931,1.42355863,2755.6,2755.3,1.53363301]
[1645876908129,0.0049939,2755.6,2755.3,1.53363301]
[1645876908727,0.02526384,2755.7,2755.3,1.53363301]
[1645876908929,0.00499397,2755.6,2755.3,1.53363301]
[1645876909831,0.02526384,2755.7,2755.3,1.53363301]
[1645876911291,0.03025759,2755.7,2755.3,1.53363301]
[1645876912290,0.0484905,2755.7,2755.3,1.53363301]
[1645876912490,0.05348425,2755.7,2755.3,1.53363301]
[1645876913091,0.05348425,2755.7,2755.1,0.14845043]
[1645876913092,0.05348425,2755.7,2755.4,1.53363301]
[1645876913290,0.05348425,2755.7,2755.1,0.14845043]
[1645876913291,0.07671091,2755.7,2755.1,0.14845043]
[1645876913490,0.07171716,2755.7,2755.2,1.53344344]
[1645876913890,0.07635838,2755.7,2755.2,1.53344344]
[1645876914292,0.09958504,2755.7,2755.2,1.53344344]
[1645876914731,0.09494382,2755.7,2755.2,1.53344344]
[1645876914933,0.09958494,2755.7,2755.2,1.53344344]
[1645876915430,1.14695895,2755.6,2755.2,1.53344344]
[1645876917036,1.14695895,2755.6,2755.1,0.00335043]
[1645876917037,1.98445895,2755.6,2755.1,0.00335043]
[1645876917234,1.98445895,2755.6,2754.9,0.00335043]
[1645876917235,13.31445895,2755.6,2754.9,0.00335043]
[1645876917434,13.31445895,2755.6,2754.9,0.004666]
[1645876917435,14.24421465,2755.6,2754.9,0.004666]
[1645876917634,15.24421465,2755.6,2754.9,0.00801643]
[1645876917837,14.33768561,2755.6,2754.9,0.00801643]
[1645876918133,1.2682819,2755.1,2754.9,0.00801643]
[1645876918385,5.29702666,2755.6,2754.8,7.45]
[1645876918586,2.25298236,2755.6,2754.9,0.00466585]
[1645876918800,0.34747191,2755.6,2754.9,0.00466585]
[1645876918999,0.04747191,2755.6,2754.9,0.00801628]
[1645876919196,0.95400095,2755.6,2754.9,0.00801628]
[1645876919397,0.95400095,2755.6,2754.9,0.00335043]
[1645876919595,0.97722761,2755.6,2754.8,7.45]
[1645876919798,1.42664607,2755.2,2754.9,0.00466585]
[1645876919997,0.07171716,2755.6,2754.9,0.00801628]
[1645876920196,0.07171716,2755.6,2754.9,0.00466585]
[1645876920399,0.07171716,2755.6,2755.0,1.53366656]
[1645876920597,0.09494382,2755.6,2755.1,3.5]
[1645876920896,0.09494382,2755.6,2755.2,1.53366656]
[1645876921096,0.09596241,2755.6,2755.0,0.00335043]
[1645876921495,0.09596241,2755.6,2755.0,1.53691369]
[1645876921697,0.11918907,2755.6,2755.0,1.53691369]
[1645876922034,0.11918907,2755.6,2755.0,1.53356326]
[1645876922035,1.27935783,2755.3,2755.0,1.53356326]
[1645876922234,1.27935783,2755.3,2754.9,0.00466433]
[1645876923042,1.27935783,2755.3,2754.7,7.45335043]
[1645876923241,1.27935783,2755.3,2754.8,1.53378554]
[1645876923442,1.27935783,2755.3,2754.8,1.46734695]
[1645876924041,1.27935783,2755.3,2754.7,0.00335043]
[1645876924341,1.27935783,2755.3,2754.6,1.1684]
[1645876925140,0.0484905,2755.4,2754.6,1.1684]
[1645876925442,0.0484905,2755.4,2754.6,1.5311]
[1645876925647,0.0484905,2755.4,2754.6,1.53445043]
[1645876925913,0.07171716,2755.4,2754.6,1.53445043]
[1645876926100,0.07273575,2755.4,2754.6,1.53445043]
[1645876926499,1.35846406,2755.4,2754.6,1.17175043]
[1645876927098,1.35846406,2755.4,2754.8,0.0018379]
[1645876927500,0.07273575,2755.4,2754.8,0.0018379]
[1645876927899,0.07273575,2755.4,2754.7,0.00335043]
[1645876928101,0.07273575,2755.4,2754.8,0.3627]
[1645876928304,0.07772972,2755.4,2754.9,3.8627]
[1645876928501,0.05450306,2755.4,2754.9,0.3627]
[1645876929103,0.04950909,2755.4,2754.9,0.3627]
[1645876929303,0.04950909,2755.4,2754.8,0.00335043]
[1645876929304,0.05450311,2755.4,2754.8,0.37104555]
[1645876930336,0.04950909,2755.4,2754.8,0.36605043]
[1645876930542,0.05450306,2755.4,2754.8,0.37104549]
[1645876931544,0.04950909,2755.4,2754.8,0.36605043]
[1645876931743,0.05450306,2755.4,2754.8,0.37104549]
[1645876932145,0.05450306,2755.4,2754.8,1.27889819]
[1645876932345,0.05450306,2755.4,2754.8,1.57889819]
[1645876932743,0.04950909,2755.4,2754.8,1.57390313]
[1645876932945,0.05450306,2755.4,2754.8,1.57889819]
[1645876933782,1.44384686,2755.4,2754.8,1.57889819]
[1645876933981,1.43885289,2755.4,2754.8,1.57390313]
[1645876934181,1.43885289,2755.4,2754.8,1.57889819]
[1645876934182,0.05450306,2755.4,2754.8,1.57889819]
[1645876934384,0.05450306,2755.4,2754.9,3.5]
[1645876934683,0.05450306,2755.4,2754.8,1.57889819]
[1645876935081,0.04950909,2755.4,2754.9,3.5]
[1645876935282,0.05450306,2755.4,2754.8,2.48673819]
[1645876935483,0.05450306,2755.4,2754.9,3.5]
[1645876935684,0.05450306,2755.4,2754.9,0.3]
[1645876936285,0.04950909,2755.4,2754.8,1.87391063]
[1645876936686,0.05450311,2755.4,2754.9,3.5]
[1645876937327,0.05450311,2755.4,2754.8,2.78674575]
[1645876937628,0.04950909,2755.4,2754.8,2.78175063]
[1645876937828,0.05450311,2755.4,2754.8,2.78674575]
[1645876938047,0.05450311,2755.4,2754.8,1.87890575]
[1645876938432,0.05313891,2755.4,2754.8,1.87890575]
[1645876938635,0.05313891,2755.4,2754.8,1.87391063]
[1645876938636,0.04814489,2755.4,2754.8,1.87391063]
[1645876938833,0.04814489,2755.4,2754.8,1.51121063]
[1645876939033,0.04814489,2755.4,2754.8,1.51620569]
[1645876939034,0.05313886,2755.4,2754.8,1.51620569]
[1645876939335,1.28526812,2755.1,2754.8,1.21620569]
[1645876939534,1.28526812,2755.1,2754.8,1.21285526]
[1645876939832,0.05212027,2755.4,2754.8,1.21285526]
[1645876939833,0.02889361,2755.4,2754.8,1.21285526]
[1645876940034,0.02389964,2755.4,2754.8,1.2078602]
[1645876940334,0.02889343,2755.4,2754.8,1.21285509]
[1645876940533,0.00101859,2755.1,2754.8,1.21285509]
[1645876940778,0.02424525,2755.1,2754.8,1.21285509]
[1645876941187,0.02424525,2755.1,2754.8,1.2078602]
[1645876941381,0.02424525,2755.1,2754.8,1.21285509]
[1645876941783,0.04610772,2755.1,2754.8,1.21285509]
[1645876942382,0.04610772,2755.1,2754.8,1.2078602]
[1645876942582,0.00101859,2755.1,2754.8,1.21285509]
[1645876942983,0.02424525,2755.1,2754.8,1.21285509]
[1645876943584,0.00203718,2755.1,2754.9,1.5335461]
[1645876944634,0.00305577,2755.1,2754.8,1.2078602]
[1645876945033,0.00305577,2755.1,2754.8,1.21285515]
[1645876945935,0.00305577,2755.1,2754.8,4.7078602]
[1645876946133,0.00305577,2755.1,2754.8,4.71285509]
[1645876946533,0.00305577,2755.1,2754.8,5.01285509]
[1645876946735,0.00305577,2755.1,2754.8,1.2118365]
[1645876947135,0.00305577,2755.1,2754.8,1.20684161]
[1645876947336,0.00305577,2755.1,2754.8,1.2118365]
[1645876948401,0.00305577,2755.1,2754.8,1.20684161]
[1645876948601,0.00305577,2755.1,2754.8,1.2118365]
[1645876949604,0.00305577,2755.1,2754.6,1.1684]
[1645876949809,0.00305577,2755.1,2754.8,0.00499489]
[1645876950910,1.10395308,2755.1,2754.8,0.00499489]
[1645876951909,1.10395308,2755.1,2754.5,0.00335043]
[1645876952131,1.10395308,2755.1,2754.8,0.00183858]
[1645876953134,1.10395308,2755.1,2754.5,0.00335043]
[1645876953333,1.10395308,2755.1,2754.8,0.00183858]
[1645876954238,1.10395308,2755.1,2754.3,1.19845043]
[1645876954432,1.10395308,2755.1,2754.8,0.00499906]
[1645876955536,1.10395308,2755.1,2754.3,0.00335043]
[1645876955780,2.01048212,2755.1,2754.8,0.00499906]
[1645876956381,13.04048212,2755.1,2754.8,0.00499906]
[1645876956582,1.90652904,2755.0,2754.8,0.00499906]
[1645876956786,1.90652904,2755.0,2754.1,0.00335043]
[1645876956981,1.90652904,2755.0,2754.8,0.00499906]
[1645876957183,0.90652904,2755.0,2754.8,0.00499906]
[1645876957587,14.40750893,2755.1,2754.8,0.00499906]
[1645876958091,0.90652904,2755.0,2754.8,0.00499906]
[1645876959088,0.90652904,2755.0,2754.4,0.01999896]
[1645876959089,13.75333904,2755.0,2754.4,0.01999896]
[1645876959295,13.75333904,2755.0,2754.1,0.00335043]
[1645876959296,11.93652904,2754.8,2754.1,0.00335043]
[1645876959547,4.18572162,2755.0,2754.3,0.01999902]
[1645876959548,0.90652904,2754.7,2754.3,0.01999902]
[1645876959737,1.20652904,2754.7,2754.3,0.01999902]
[1645876960137,12.23652904,2754.7,2754.3,0.01999902]
[1645876960337,1.04088214,2754.6,2753.7,0.00335043]
[1645876960537,1.94741118,2754.6,2754.4,0.00483428]
[1645876960738,1.04088214,2754.6,2754.4,0.00483428]
[1645876961541,1.0744558,2753.8,2753.7,0.00335043]
[1645876961739,1.4153613,2754.5,2754.4,0.00483428]
[1645876961943,13.3538413,2754.5,2754.4,0.00483428]
[1645876962140,14.1768413,2754.5,2754.4,0.00483428]
[1645876962339,15.1768413,2754.5,2754.4,0.00483428]
[1645876962742,15.1768413,2754.5,2753.9,0.00335043]
[1645876962940,15.1768413,2754.5,2754.3,0.00483431]
[1645876963581,16.08337034,2754.5,2754.3,0.00483431]
[1645876963981,15.1768413,2754.5,2753.9,0.00335043]
[1645876964184,16.08337034,2754.5,2754.3,0.00469887]
[1645876964382,12.84725,2754.4,2754.3,0.00469887]
[1645876964597,13.37025,2754.4,2754.3,0.00469887]
[1645876964789,19.9314254,2754.4,2754.3,0.00469887]
[1645876964989,17.00315743,2754.4,2754.3,0.00469887]
[1645876965189,16.57677904,2754.4,2753.9,0.00335043]
[1645876965393,16.57677904,2754.4,2753.8,0.56203741]
[1645876965589,11.03,2754.1,2753.8,0.53113696]
[1645876965788,12.853,2754.1,2753.8,0.53113696]
[1645876966188,11.03,2753.9,2753.8,0.53113696]
[1645876966591,11.33,2753.9,2753.8,0.53113696]
[1645876966889,12.33,2753.9,2753.8,0.53113696]
[1645876967340,1.3,2753.9,2753.8,0.53113696]
[1645876967739,0.3,2753.9,2753.8,0.53011837]
[1645876967942,2.65710297,2754.0,2753.8,0.53011837]
[1645876968141,1.65710297,2754.0,2753.8,0.53011837]
[1645876968342,2.65710297,2754.0,2753.8,0.53011837]
[1645876968541,1.65710297,2754.0,2753.8,0.53011837]
[1645876968743,1.35710297,2754.0,2753.8,0.53011837]
[1645876968942,1.35710297,2754.0,2753.8,0.53511509]
[1645876969950,1.35710297,2754.0,2753.8,0.53011837]
[1645876970247,11.03,2753.9,2753.8,0.00499672]
[1645876970449,11.553,2753.9,2753.8,9.672e-05]
[1645876970650,11.553,2753.9,2753.3,0.01998989]
[1645876970651,11.03070328,2753.7,2753.3,0.01998989]
[1645876970899,11.03070328,2753.7,2753.3,8.989e-05]
[1645876970900,11.03,2753.5,2753.3,8.989e-05]
[1645876971099,12.75085097,2753.4,2753.0,0.25]
[1645876971302,13.75085097,2753.4,2752.7,0.01816388]
[1645876971505,14.05085097,2753.4,2753.1,0.04092649]
[1645876971903,11.03,2753.2,2752.7,0.01816388]
[1645876972101,0.90892,2753.3,2752.7,0.01816388]
[1645876972102,11.03,2752.9,2752.7,0.01816388]
[1645876972501,1.42922363,2752.8,2752.7,0.01816388]
[1645876972905,0.523,2753.0,2752.7,0.01816388]
[1645876973105,0.00070328,2753.7,2752.7,0.01816388]
[1645876973302,0.52370328,2753.7,2752.7,0.01816388]
[1645876973703,11.03,2753.6,2752.7,0.01816388]
[1645876973906,1.05121909,2753.4,2753.1,0.00499401]
[1645876974734,1.05121909,2753.4,2752.7,0.01816388]
[1645876974939,1.25198364,2752.9,2752.7,0.01816388]
[1645876976334,0.00499281,2753.5,2752.7,0.02315815]
[1645876977135,1.20883,2753.6,2752.7,0.01816388]
[1645876977336,1.29341338,2753.2,2753.0,0.00499408]
[1645876978387,1.59341338,2753.2,2752.7,0.01816388]
[1645876978587,1.59341338,2753.2,2753.0,0.00499408]
[1645876978786,11.03,2753.1,2753.0,0.00499408]
[1645876979193,13.23894,2753.1,2753.0,0.00499408]
[1645876979387,13.76194,2753.1,2753.0,0.00499408]
[1645876979588,13.76194,2753.1,2752.7,0.01816388]
[1645876979990,13.76194,2753.1,2752.9,0.00499411]
[1645876980690,13.76194,2753.1,2752.7,0.01816388]
[1645876980989,14.76194,2753.1,2752.9,0.00499414]
[1645876981196,14.76194,2753.1,2752.2,0.25]
[1645876981197,7.0,2753.0,2751.8,0.1452]
[1645876981392,7.0,2753.0,2751.0,39.01066568]
[1645876981393,5.0,2752.6,2752.1,0.25]
[1645876981590,11.03,2752.4,2751.3,0.25]
[1645876981793,7.0,2751.9,2751.3,0.25]
[1645876982056,1.0,2752.1,2751.0,42.45]
[1645876982057,11.553,2751.8,2751.0,42.45]
[1645876982244,12.553,2751.8,2751.0,42.45]
[1645876982447,1.1347578,2751.4,2751.0,42.45]
[1645876982642,12.553,2751.8,2751.5,0.50303092]
[1645876982846,1.823,2751.8,2751.5,0.50303092]
[1645876983042,2.73239,2751.8,2751.5,0.50303092]
[1645876983453,1.43239,2751.8,2751.5,0.50303092]
[1645876983643,1.33810738,2751.6,2751.5,0.50303092]
[1645876983849,0.523,2751.8,2751.5,0.50303092]
[1645876984050,11.553,2751.8,2751.5,0.50303092]
[1645876984351,12.853,2751.8,2751.5,0.50303092]
[1645876984550,12.853,2751.8,2751.5,0.50802278]
[1645876984949,11.03,2751.6,2751.5,0.50802278]
[1645876985150,11.553,2751.6,2751.5,0.50802278]
[1645876985352,3.64208,2751.6,2751.5,0.50802278]
[1645876985551,14.67208,2751.6,2751.5,0.50303092]
[1645876986591,14.67208,2751.6,2751.5,0.45544772]
[1645876988790,14.67208,2751.6,2751.5,0.45442913]
[1645876991077,14.67208,2751.6,2751.4,0.00499613]
[1645876991078,18.03,2751.5,2751.4,9.613e-05]
[1645876991277,19.553,2751.5,2751.4,9.613e-05]
[1645876991476,11.03,2751.3,2751.0,32.12019947]
[1645876991673,11.03,2751.3,2751.0,32.10021193]
[1645876991674,12.02917815,2751.1,2751.0,32.10021193]
[1645876991876,11.853,2751.1,2751.0,32.10021193]
[1645876992075,12.88067419,2751.1,2751.0,32.10021193]
[1645876992275,13.88067419,2751.1,2751.0,32.10021193]
[1645876992677,11.03,2750.9,2750.6,0.0501]
[1645876992878,12.19980534,2750.7,2750.6,0.0501]
[1645876993081,13.77310534,2750.7,2750.6,0.0501]
[1645876993309,15.07310534,2750.7,2750.6,0.0501]
[1645876993506,15.07310534,2750.7,2750.2,0.00334064]
[1645876993507,11.03,2750.4,2750.2,0.00334064]
[1645876993706,11.03,2750.2,2749.8,0.00334064]
[1645876993909,13.22885649,2750.2,2749.7,0.25]
[1645876994110,14.76066,2750.2,2749.7,0.25]
[1645876995411,0.523,2750.2,2749.7,0.25]
[1645876995615,1.523,2750.8,2749.7,0.61604064]
[1645876995816,0.523,2750.8,2749.8,0.00334064]
[1645876996211,0.523,2750.8,2750.5,1.18823435]
[1645876996408,0.523,2750.8,2750.2,0.00334064]
[1645876996609,0.523,2750.8,2749.8,3.86604064]
[1645876997060,0.523,2750.8,2750.1,6.2440654]
[1645876997251,3.5403,2751.3,2750.3,0.3627]
[1645876997550,2.8654,2751.4,2750.4,3.50334064]
[1645876997749,1.3440175,2751.6,2750.3,0.3627]
[1645876997949,1.1671,2751.6,2750.4,0.00833352]
[1645876998148,1.1671,2751.6,2750.4,3.50833352]
[1645876998353,11.33,2751.6,2750.4,3.50833352]
[1645876998550,11.553,2751.6,2750.4,0.00833352]
[1645876998752,0.90957,2751.4,2750.4,0.00833352]
[1645876998951,0.90957,2751.4,2750.4,0.00334064]
[1645876999152,11.03,2751.3,2750.4,1.24529982]
[1645876999353,13.84925,2751.3,2750.4,0.00833375]
[1645876999551,14.37225,2751.3,2750.4,0.00833375]
[1645876999758,2.34225,2751.3,2750.4,0.00833375]
[1645877000058,7.1315,2752.1,2750.4,5.00334064]
[1645877000256,7.1315,2752.1,2750.6,0.3627]
[1645877000456,0.00499058,2751.7,2751.3,1.02709362]
[1645877000656,0.00499058,2751.7,2750.8,0.3627]
[1645877000893,0.00499058,2751.7,2750.9,0.00334064]
[1645877001294,11.03,2751.9,2750.4,0.36604064]
[1645877001511,11.553,2751.9,2750.6,0.3627]
[1645877001694,0.0049911,2751.7,2750.9,1.27416246]
[1645877001893,0.0049911,2751.7,2751.0,0.00334064]
[1645877002093,11.0349911,2751.7,2750.7,0.00334064]
[1645877002292,11.5579911,2751.7,2750.7,0.00334064]
[1645877002493,12.853,2751.7,2750.7,0.00334064]
[1645877002693,1.823,2751.7,2750.6,0.3627]
[1645877002894,1.82763647,2751.7,2750.6,0.3627]
[1645877003095,0.82763647,2751.7,2750.7,0.00334064]
[1645877003399,0.00463647,2751.7,2750.8,0.3627]
[1645877003595,0.00463647,2751.7,2751.0,0.3627]
[1645877003794,3.4966,2752.6,2751.2,0.3627]
[1645877003994,3.4966,2752.6,2751.8,1.37955309]
[1645877004195,11.03,2752.7,2751.8,1.37955309]
[1645877004396,11.03,2752.7,2751.5,1.245]
[1645877004642,11.03,2752.5,2751.6,0.00334064]
[1645877004844,12.853,2752.5,2751.6,0.00334064]
[1645877005244,0.9976,2752.0,2751.2,0.00334064]
[1645877005448,11.553,2752.1,2751.2,1.11348424]
[1645877005643,0.90934,2752.0,2751.3,0.00334064]
[1645877005841,1.20934,2752.0,2751.3,0.00334064]
[1645877006241,1.20934,2752.0,2751.1,0.00334064]
[1645877006444,0.00463673,2751.8,2751.1,0.00334064]
[1645877007240,3.03234,2752.0,2751.1,0.00334064]
[1645877007441,11.03,2751.9,2751.1,0.00334064]
[1645877007641,0.00467139,2751.7,2751.0,1.08183792]
[1645877008294,11.03467139,2751.7,2751.0,1.08183792]
[1645877008496,11.03,2751.7,2750.5,6.5568]
[1645877008700,11.03,2751.7,2750.5,4.3061]
[1645877008897,11.55767128,2751.7,2750.5,4.3061]
[1645877009097,11.55767128,2751.7,2750.6,0.3627]
[1645877009297,12.85767128,2751.7,2750.6,0.3627]
[1645877009499,11.55767128,2751.7,2750.6,0.3627]
[1645877009700,11.853,2751.7,2750.5,4.30508141]
[1645877009901,12.853,2751.7,2750.5,1.49828141]
[1645877010100,11.03,2751.5,2750.5,1.49828141]
[1645877010300,12.33,2751.5,2750.5,1.49828141]
[1645877010704,12.33,2751.5,2750.5,2.80228517]
[1645877011100,12.33,2751.5,2750.5,1.49828141]
[1645877011304,12.853,2751.5,2750.5,1.49828141]
[1645877014642,12.853,2751.5,2750.6,0.00332575]
[1645877018903,11.03,2751.2,2750.6,0.00332575]
[1645877019205,11.93955,2751.3,2750.5,1.2493]
[1645877019404,11.33,2751.3,2750.5,1.25262575]
[1645877019649,12.33,2751.3,2750.5,1.25262575]
[1645877023056,12.32184366,2751.3,2750.5,1.25262575]
[1645877023811,12.32184366,2751.3,2750.6,1.53597241]
[1645877025416,13.23140366,2751.3,2750.6,1.53597241]
[1645877027240,13.75440366,2751.3,2750.6,1.53597241]
[1645877027640,11.03,2750.8,2750.6,1.53597241]
[1645877028040,11.03,2750.8,2750.4,0.00463842]
[1645877028239,11.03,2750.8,2750.5,1.5361081]